bitfinex/quotes_ETHUSD_20241108
["timestamp","ask_amount","ask_price","bid_price","bid_amount"]
[1731055044580,3.62519672,2905.2,2904.5,0.7802]
[1731055045184,3.0,2905.0,2904.5,0.7802]
[1731055045408,3.0,2905.0,2903.1,0.7949]
[1731055045616,3.0,2904.6,2903.1,0.7949]
[1731055047127,3.0,2904.6,2903.3,0.7749]
[1731055047329,0.70927354,2904.5,2903.3,0.7749]
[1731055047987,0.70927354,2904.5,2903.4,0.8547767]
[1731055048520,0.70927354,2904.5,2903.4,0.7859]
[1731055049300,3.0,2904.6,2903.5,0.8003]
[1731055051299,3.70887745,2905.0,2903.7,0.8306]
[1731055051524,1.33407417,2905.2,2903.9,0.8306]
[1731055051847,0.62519672,2905.2,2904.0,0.89486318]
[1731055052127,0.70927354,2905.3,2904.0,0.826]
[1731055052837,1.41815099,2905.3,2904.0,0.826]
[1731055053013,4.41815099,2905.3,2904.0,0.826]
[1731055053408,3.70927354,2905.3,2904.0,0.826]
[1731055053610,4.96084174,2905.2,2904.0,0.826]
[1731055054408,4.84873535,2905.1,2904.0,0.826]
[1731055054736,0.70887745,2905.0,2904.0,0.826]
[1731055054940,0.70887745,2904.9,2904.0,0.826]
[1731055055321,4.03545924,2904.8,2904.0,0.826]
[1731055055502,3.40354592,2904.7,2904.0,0.826]
[1731055056955,4.11242337,2904.7,2904.0,0.826]
[1731055057943,3.40354592,2904.7,2904.0,0.826]
[1731055059036,0.40354592,2904.7,2904.0,0.826]
[1731055059337,3.70887745,2905.0,2904.0,0.826]
[1731055059951,0.70887745,2905.3,2904.0,0.826]
[1731055060155,0.70887745,2905.3,2903.6,0.01]
[1731055060156,0.70887745,2905.4,2904.2,0.8209]
[1731055060445,0.70887745,2905.6,2904.3,0.8897556]
[1731055060619,2.00378164,2905.6,2904.3,0.8897556]
[1731055060827,2.00378164,2905.6,2904.3,0.8209]
[1731055061436,0.70887745,2905.5,2904.3,0.8209]
[1731055062112,3.70887745,2905.5,2904.3,0.8209]
[1731055062312,0.70887745,2905.4,2904.3,0.8209]
[1731055063114,3.0,2905.3,2904.3,0.8209]
[1731055063354,4.41242337,2905.3,2904.3,0.8209]
[1731055063929,3.0,2905.0,2904.3,0.8209]
[1731055064341,3.70887745,2905.0,2904.3,0.8209]
[1731055064656,0.70887745,2904.9,2904.3,0.8209]
[1731055065328,0.70887745,2904.7,2904.3,0.8209]
[1731055065654,0.70887745,2904.6,2904.3,0.8209]
[1731055066536,0.88609681,2904.7,2904.3,0.8209]
[1731055067276,3.70887745,2904.4,2904.0,0.8162]
[1731055068119,0.70887745,2904.3,2904.0,0.8162]
[1731055068424,1.51875499,2904.3,2904.0,0.8162]
[1731055070241,3.70887745,2904.4,2904.0,0.8162]
[1731055073667,3.0,2904.4,2904.0,0.8162]
[1731055075378,0.70887745,2904.3,2904.0,0.8162]
[1731055076434,3.70887745,2904.4,2904.0,0.8162]
[1731055076865,3.0,2904.4,2904.0,0.8162]
[1731055077279,3.80987754,2904.4,2904.0,0.8162]
[1731055077569,4.51875499,2904.4,2904.0,0.8162]
[1731055079075,3.0,2904.4,2904.0,0.8162]
[1731055079770,0.70887745,2904.6,2904.0,0.8162]
[1731055080838,4.03545924,2904.8,2904.0,0.8162]
[1731055081979,0.70887745,2904.4,2904.0,0.8162]
[1731055082180,3.70887745,2904.4,2904.0,0.8162]
[1731055082339,1.51875499,2904.3,2904.0,0.8162]
[1731055083777,0.80987754,2904.3,2904.0,0.8162]
[1731055083961,3.70887745,2904.4,2904.0,0.8162]
[1731055084647,0.70887745,2904.5,2904.0,0.8162]
[1731055084851,0.70887745,2904.7,2904.0,0.8162]
[1731055085673,3.70887745,2904.7,2904.0,0.8162]
[1731055086379,4.03545924,2904.8,2904.0,0.8162]
[1731055086553,3.0,2904.7,2904.0,0.8162]
[1731055087379,3.70887745,2904.7,2904.0,0.8162]
[1731055087674,3.0,2904.7,2904.2,0.7612]
[1731055088069,3.70887745,2904.7,2904.2,0.7612]
[1731055088443,3.0,2904.7,2904.2,0.7612]
[1731055088638,3.70887745,2904.7,2904.2,0.7612]
[1731055089441,0.70887745,2904.6,2904.2,0.7612]
[1731055089666,1.51875499,2904.6,2904.2,0.7612]
[1731055089842,3.32658179,2904.5,2904.2,0.7612]
[1731055090054,4.03545924,2904.5,2903.3,0.55]
[1731055090257,0.70887745,2904.4,2903.4,0.818]
[1731055090779,0.70887745,2904.5,2903.5,0.8299]
[1731055090988,0.70887745,2904.6,2903.5,0.8299]
[1731055092088,0.70887745,2904.5,2903.6,0.89516784]
[1731055092385,3.0,2904.7,2903.6,0.89516784]
[1731055092386,3.70887745,2904.7,2903.6,0.89516784]
[1731055092675,4.38989796,2904.8,2903.8,0.8318]
[1731055092676,3.70887745,2904.8,2903.8,0.8318]
[1731055092879,0.70887745,2904.8,2903.8,0.8318]
[1731055093381,3.0,2904.7,2903.8,0.8318]
[1731055093752,3.70887745,2904.7,2903.8,0.8318]
[1731055094278,3.0,2904.7,2903.8,0.8318]
[1731055094483,3.70887745,2904.7,2903.8,0.8318]
[1731055095550,3.32658179,2904.5,2903.8,0.8318]
[1731055095895,3.32658179,2904.2,2903.8,0.8318]
[1731055096052,0.70887745,2904.3,2903.8,0.8318]
[1731055096455,0.70887745,2904.2,2903.8,0.8318]
[1731055098283,0.70887745,2904.3,2903.8,0.8318]
[1731055100377,0.17721936,2904.2,2903.8,0.8318]
[1731055100585,0.70887745,2904.3,2903.8,0.8318]
[1731055102796,0.70887745,2904.4,2903.8,0.8318]
[1731055102974,0.70887745,2904.3,2903.8,0.8318]
[1731055107273,3.70887745,2904.3,2903.8,0.8318]
[1731055107474,0.70887745,2904.2,2903.8,0.8318]
[1731055107807,0.70887745,2904.3,2903.8,0.8318]
[1731055108371,1.06331617,2904.4,2903.8,0.8318]
[1731055108372,0.70887745,2904.2,2903.8,0.8318]
[1731055110141,0.70887745,2904.1,2903.8,0.8318]
[1731055111408,4.03545924,2904.0,2903.1,0.7654]
[1731055111609,3.32658179,2903.3,2903.1,0.7654]
[1731055111919,3.32658179,2903.3,2902.2,0.7654]
[1731055112120,4.03545924,2903.3,2902.2,0.7654]
[1731055112431,5.33743678,2903.3,2902.2,0.7654]
[1731055112614,3.32658179,2903.0,2902.2,0.7654]
[1731055112815,3.32658179,2902.7,2902.2,0.7654]
[1731055113247,3.32658179,2902.4,2901.1,0.7948]
[1731055113541,3.32658179,2901.7,2901.1,0.7948]
[1731055113746,4.50497745,2902.3,2901.1,0.7948]
[1731055113747,3.32658179,2902.0,2901.1,0.7948]
[1731055113914,3.65923997,2902.0,2900.6,0.625]
[1731055114251,3.32658179,2901.1,2900.6,0.625]
[1731055114850,3.0,2901.0,2900.6,0.625]
[1731055115648,3.0,2901.2,2900.6,0.625]
[1731055117239,3.0,2901.5,2900.6,0.625]
[1731055117439,5.18920997,2901.4,2900.6,0.625]
[1731055117639,3.0,2901.3,2900.6,0.625]
[1731055118962,11.95444978,2901.8,2900.6,0.625]
[1731055119163,4.10418333,2901.8,2900.6,0.625]
[1731055119374,4.10418333,2901.8,2900.7,0.8051]
[1731055119672,0.48628833,2901.7,2900.7,0.8051]
[1731055120457,3.48628833,2901.7,2900.7,0.8051]
[1731055121741,3.0,2901.7,2900.7,0.8051]
[1731055124669,4.10418333,2901.4,2900.6,0.625]
[1731055124845,3.7798,2901.3,2900.6,0.625]
[1731055129399,3.0,2901.3,2900.6,0.625]
[1731055129872,3.0,2901.3,2900.7,0.8043]
[1731055130076,3.71041833,2901.3,2900.7,0.8043]
[1731055132300,4.10418333,2901.0,2900.7,0.8043]
[1731055133707,7.10418333,2901.4,2900.7,0.8043]
[1731055134868,0.76813854,2902.5,2900.6,0.625]
[1731055134869,7.85026645,2902.8,2900.8,0.55]
[1731055135073,4.89517075,2902.7,2901.1,0.55]
[1731055135272,4.10418333,2902.3,2901.2,0.8192]
[1731055135495,4.10418333,2902.3,2901.3,0.55]
[1731055136611,3.0,2902.2,2901.3,0.55]
[1731055136777,4.10418333,2901.9,2901.2,0.8192]
[1731055137407,3.33320309,2901.8,2901.2,0.8192]
[1731055140109,3.0,2902.0,2901.3,0.55]
[1731055140323,3.0,2902.3,2901.4,0.7684]
[1731055140478,3.0,2902.3,2901.5,0.55]
[1731055140880,3.0,2902.3,2901.6,0.7614]
[1731055141595,3.33320309,2902.7,2901.9,0.55]
[1731055141772,3.33320309,2902.7,2902.0,0.8145]
[1731055142172,3.33320309,2902.7,2902.1,0.55]
[1731055142486,3.33320309,2903.0,2902.2,0.8145]
[1731055143011,3.33320309,2902.7,2902.2,0.8145]
[1731055144372,3.33320309,2902.7,2902.3,0.55]
[1731055145915,6.33320309,2903.0,2902.3,0.55]
[1731055146101,3.33320309,2903.3,2902.5,0.55]
[1731055146305,3.33320309,2903.3,2902.7,0.55]
[1731055146987,3.33320309,2903.6,2902.9,0.55]
[1731055148210,3.33320309,2903.3,2902.9,0.55]
[1731055148710,4.15200109,2903.5,2902.9,0.55]
[1731055149589,0.74425526,2903.5,2902.9,0.55]
[1731055153526,3.74425526,2903.5,2902.9,0.55]
[1731055153831,3.33320309,2903.3,2902.8,0.8086]
[1731055154535,3.0,2903.2,2902.0,0.7793]
[1731055154822,0.63332031,2903.1,2902.0,0.7793]
[1731055156126,3.0,2902.9,2902.0,0.7793]
[1731055156294,3.33320309,2902.7,2902.0,0.7793]
[1731055157040,3.7598,2902.3,2901.0,0.8171]
[1731055157193,3.33320309,2901.7,2901.0,0.8171]
[1731055157626,3.0,2901.9,2901.0,0.8171]
[1731055158390,3.0,2901.9,2901.1,0.55]
[1731055161132,3.63332031,2901.9,2901.1,0.55]
[1731055164724,3.0,2902.2,2901.3,0.55]
[1731055165150,3.0,2902.2,2900.4,3.07893575]
[1731055165151,3.0,2902.2,2901.5,0.55]
[1731055166134,4.09300309,2902.3,2900.2,0.01]
[1731055166135,3.0,2901.9,2900.5,0.82703302]
[1731055167425,3.0,2902.2,2900.7,0.8304]
[1731055167625,3.70930031,2902.2,2900.7,0.8304]
[1731055167825,3.70930031,2902.2,2900.7,0.55]
[1731055168037,3.70930031,2902.2,2901.0,0.7805]
[1731055168268,3.70930031,2902.2,2901.1,0.55]
[1731055168569,3.70930031,2902.2,2901.3,0.55]
[1731055168794,3.70930031,2902.2,2901.3,0.7363]
[1731055168964,3.0,2902.2,2901.5,0.55]
[1731055169168,0.7622,2902.6,2901.7,0.55]
[1731055169169,3.0,2902.5,2901.7,0.55]
[1731055169377,3.33320309,2902.6,2901.9,0.55]
[1731055169661,3.33320309,2902.9,2901.9,0.55]
[1731055169965,0.41155031,2902.8,2901.9,0.55]
[1731055171161,3.41155031,2902.8,2901.9,0.55]
[1731055171528,3.0,2902.8,2902.1,0.55]
[1731055171727,3.0,2902.8,2901.3,0.1863]
[1731055171728,3.33320309,2903.2,2902.3,0.55]
[1731055173080,3.0,2903.1,2902.3,0.55]
[1731055173240,3.33320309,2903.2,2902.5,0.55]
[1731055173448,3.33320309,2903.2,2902.7,0.55]
[1731055173639,0.33332031,2903.1,2902.7,0.55]
[1731055175184,3.33332031,2903.1,2902.7,0.55]
[1731055179843,3.0,2903.1,2902.7,0.55]
[1731055180049,3.0,2903.4,2902.7,0.55]
[1731055180248,0.74425526,2903.5,2902.9,0.55]
[1731055180453,3.33320309,2903.8,2903.1,0.55]
[1731055180707,1.46417745,2904.0,2903.1,0.55]
[1731055180852,1.03777601,2903.9,2903.2,0.8302]
[1731055181059,1.03777601,2903.9,2903.3,0.55]
[1731055181953,3.33320309,2903.8,2903.3,0.55]
[1731055182688,3.0,2903.7,2903.3,0.55]
[1731055192575,6.33320309,2904.1,2903.3,0.55]
[1731055195069,3.33320309,2903.8,2903.3,0.55]
[1731055195402,3.0,2903.7,2903.3,0.55]
[1731055197298,3.63332031,2903.7,2903.3,0.55]
[1731055199196,3.33320309,2903.5,2903.2,0.8302]
[1731055199800,3.33320309,2903.5,2902.0,0.8137]
[1731055200002,3.33320309,2903.5,2902.0,0.8237]
[1731055200870,3.33320309,2903.5,2902.0,0.55]
[1731055201065,4.02985543,2903.5,2902.4,0.55]
[1731055201268,3.0,2903.4,2902.6,0.55]
[1731055201466,3.0,2903.4,2902.5,0.7833]
[1731055201467,4.09040309,2903.2,2902.5,0.7833]
[1731055202767,4.09040309,2903.2,2902.6,0.55]
[1731055203510,3.33320309,2902.9,2902.6,0.55]
[1731055203669,3.6665234,2902.9,2902.6,0.55]
[1731055206002,3.0,2902.8,2902.6,0.55]
[1731055206205,3.0,2902.8,2901.4,0.8125]
[1731055206431,3.0,2902.5,2901.4,0.8125]
[1731055208285,3.0,2902.5,2901.6,0.8311]
[1731055208690,3.0,2902.5,2901.7,0.55]
[1731055208897,3.0,2902.5,2901.9,0.55]
[1731055211100,3.63332031,2902.5,2901.9,0.55]
[1731055212635,0.7914,2902.4,2901.9,0.55]
[1731055212801,0.7914,2902.4,2901.7,0.55]
[1731055216756,0.7981,2902.6,2901.7,0.55]
[1731055217742,0.70887745,2902.7,2901.9,0.55]
[1731055217943,0.70887745,2902.7,2902.1,0.55]
[1731055218724,0.70887745,2902.7,2902.2,0.7573]
[1731055218926,0.70887745,2902.7,2901.4,3.02]
[1731055218927,0.70887745,2902.7,2902.3,0.55]
[1731055219231,0.70887745,2902.7,2902.5,0.55]
[1731055222977,0.70887745,2902.7,2902.6,0.8129]
[1731055223321,0.70887745,2902.7,2902.6,1.3629]
[1731055224814,3.0,2903.4,2902.7,0.55]
[1731055225825,3.81053967,2903.4,2902.7,0.55]
[1731055226025,3.0,2903.1,2901.6,0.7921]
[1731055226203,0.7501,2902.7,2901.6,0.7921]
[1731055227539,3.0,2902.8,2901.9,0.7646]
[1731055227746,4.47497745,2902.9,2902.0,0.55]
[1731055227892,2.02880681,2902.9,2902.0,0.55]
[1731055228292,2.02880681,2902.9,2901.3,3.0]
[1731055228293,0.70887745,2903.0,2902.2,0.55]
[1731055228493,3.70887745,2903.1,2902.2,0.55]
[1731055229117,0.70887745,2903.0,2902.2,0.55]
[1731055229436,0.70887745,2902.9,2902.2,0.55]
[1731055230520,0.70887745,2903.0,2902.2,0.55]
[1731055230724,1.66798487,2903.0,2902.2,0.55]
[1731055231114,0.70887745,2902.9,2902.2,0.55]
[1731055234047,3.70887745,2902.9,2902.2,0.55]
[1731055234257,0.70887745,2902.8,2902.2,0.55]
[1731055234413,1.51941712,2902.7,2902.2,0.55]
[1731055234950,0.81053967,2902.7,2902.2,0.55]
[1731055235836,4.66798487,2903.0,2902.3,0.78]
[1731055236015,4.66798487,2903.0,2902.4,0.55]
[1731055236016,1.66798487,2903.0,2902.4,0.55]
[1731055236724,0.70887745,2902.9,2902.4,0.55]
[1731055236921,3.70887745,2902.9,2902.4,0.55]
[1731055237750,0.70887745,2902.8,2902.2,0.55]
[1731055238053,0.70887745,2902.7,2902.2,0.55]
[1731055240149,0.8277,2902.6,2902.2,0.55]
[1731055240354,1.53657745,2902.6,2902.2,0.55]
[1731055240944,0.70887745,2902.6,2902.2,0.55]
[1731055243250,0.70887745,2902.5,2902.2,0.55]
[1731055243924,0.70887745,2902.6,2902.2,0.55]
[1731055244126,0.70887745,2902.5,2902.2,0.55]
[1731055245359,0.70887745,2902.4,2902.2,0.55]
[1731055245928,0.70887745,2902.5,2902.2,0.55]
[1731055246123,0.70887745,2902.6,2902.2,0.55]
[1731055246324,0.70887745,2902.5,2902.2,0.55]
[1731055247041,1.49627745,2902.4,2901.4,0.7554]
[1731055247355,0.70887745,2902.1,2901.4,0.7554]
[1731055248456,0.70887745,2901.8,2901.0,0.8141]
[1731055248772,4.06331617,2901.9,2901.0,0.8141]
[1731055248773,0.70887745,2901.7,2901.0,0.8141]
[1731055249871,0.70887745,2901.7,2901.1,0.55]
[1731055250079,0.70887745,2901.3,2900.7,0.625]
[1731055250237,4.52567745,2901.4,2900.7,0.625]
[1731055250550,0.70887745,2901.2,2900.7,0.625]
[1731055251267,4.60109712,2901.3,2900.7,0.625]
[1731055251590,3.33320309,2900.9,2900.7,0.625]
[1731055251878,0.8157,2900.8,2900.7,0.625]
[1731055252969,3.8157,2900.8,2900.7,0.625]
[1731055253181,4.60147805,2900.8,2900.7,0.625]
[1731055254838,5.29638327,2900.8,2900.7,0.21484375]
[1731055255258,4.58750582,2900.8,2900.7,0.21484375]
[1731055255668,0.792,2900.4,2899.3,0.7929]
[1731055255869,3.0,2900.2,2899.3,0.7929]
[1731055256179,1.08502664,2900.1,2899.3,0.7929]
[1731055256977,1.08502664,2900.1,2899.4,0.55]
[1731055258773,6.33320309,2900.2,2899.4,0.55]
[1731055258774,3.0,2900.2,2899.4,0.55]
[1731055259180,3.0,2900.2,2899.5,0.7836]
[1731055259343,3.0,2900.2,2898.7,0.9197101]
[1731055259344,14.18346954,2900.2,2898.7,0.9197101]
[1731055259547,0.7672,2899.8,2898.7,0.9197101]
[1731055260648,3.33320309,2899.6,2898.7,0.1361101]
[1731055260874,0.8129,2899.2,2898.7,0.1361101]
[1731055261148,3.8129,2899.2,2898.7,0.1361101]
[1731055262471,3.0,2898.9,2898.7,0.1361101]
[1731055262668,3.33320309,2899.3,2898.7,0.9003101]
[1731055262881,3.0,2899.2,2898.7,0.1361101]
[1731055263088,3.33320309,2899.0,2898.7,0.1361101]
[1731055263272,3.0,2899.2,2898.7,0.1361101]
[1731055264590,3.33320309,2899.0,2898.7,0.1361101]
[1731055264888,0.8266,2898.9,2898.7,0.1361101]
[1731055265604,3.33320309,2899.0,2898.7,0.1361101]
[1731055265809,0.70933031,2899.0,2898.7,0.1361101]
[1731055266322,3.33320309,2899.0,2898.7,0.1361101]
[1731055269503,11.18346954,2899.0,2898.7,0.1361101]
[1731055269926,0.7649,2898.9,2898.7,0.1361101]
[1731055271884,11.18346954,2899.0,2898.7,0.1361101]
[1731055272085,0.7943,2899.2,2898.7,0.1361101]
[1731055272504,3.7943,2899.2,2898.7,0.1361101]
[1731055273023,3.33320309,2899.0,2898.7,0.1361101]
[1731055274583,0.825,2898.9,2898.7,0.1361101]
[1731055274786,3.825,2898.9,2898.7,0.1361101]
[1731055275197,3.825,2898.9,2896.7,0.7698]
[1731055275198,0.835,2898.8,2896.7,0.7698]
[1731055275501,0.835,2898.8,2896.9,0.7698]
[1731055275502,3.33320309,2898.3,2896.9,0.7698]
[1731055276924,3.33320309,2898.3,2897.2,0.55]
[1731055277222,3.33320309,2898.3,2897.1,0.7594]
[1731055277408,3.33320309,2898.3,2897.2,0.55]
[1731055277600,0.7678,2898.2,2897.2,0.55]
[1731055277814,0.7678,2898.2,2897.4,0.55]
[1731055278220,1.17790031,2898.2,2897.4,0.55]
[1731055280041,0.41010031,2898.2,2897.4,0.55]
[1731055280712,0.8004,2898.5,2897.4,0.55]
[1731055280915,14.18346954,2898.6,2897.5,0.756]
[1731055281233,6.33320309,2898.6,2897.6,0.55]
[1731055281612,1.18296314,2899.7,2897.8,0.55]
[1731055281806,3.33320309,2899.4,2898.0,0.55]
[1731055282050,3.33320309,2899.4,2898.2,0.55]
[1731055282206,0.7931,2899.0,2898.2,0.55]
[1731055282602,3.33320309,2898.8,2898.2,0.55]
[1731055289766,0.7931,2899.0,2898.2,0.55]
[1731055289961,3.0,2899.0,2898.4,0.55]
[1731055294669,3.0,2899.0,2898.3,0.8241]
[1731055296779,3.33320309,2898.5,2897.2,0.8231]
[1731055296992,3.33320309,2898.2,2897.2,0.8231]
[1731055297283,4.0441434,2898.2,2897.2,0.8231]
[1731055297485,3.0,2898.1,2897.2,0.8231]
[1731055297643,3.33320309,2897.9,2897.2,0.8231]
[1731055297843,3.0,2897.8,2897.2,0.8231]
[1731055299082,3.71094031,2898.2,2897.3,0.55]
[1731055299546,3.71094031,2898.2,2897.5,0.55]
[1731055299743,1.15612068,2898.1,2897.5,0.55]
[1731055300175,1.15612068,2898.1,2897.4,0.8017]
[1731055300386,4.48932377,2898.1,2897.4,0.8017]
[1731055300567,3.0,2898.0,2897.4,0.8017]
[1731055302695,0.7864,2897.9,2896.3,0.55]
[1731055302891,3.0,2897.7,2896.3,0.7932]
[1731055304121,3.0,2897.7,2896.5,0.7581]
[1731055304461,3.0,2897.7,2896.4,0.7581]
[1731055304992,3.0,2897.7,2896.6,0.8119]
[1731055305203,4.53533238,2897.9,2896.7,0.55]
[1731055305499,3.74893238,2897.9,2897.1,0.55]
[1731055305659,0.74893238,2897.9,2897.3,0.55]
[1731055305860,0.7909,2897.8,2897.3,1.3002]
[1731055306201,3.74893238,2897.9,2897.3,1.3002]
[1731055306363,0.70821355,2897.8,2897.3,1.3002]
[1731055308261,7.04251011,2898.3,2897.3,1.3002]
[1731055308991,3.33320309,2898.0,2897.3,1.3002]
[1731055309304,4.04251011,2898.0,2897.3,1.3002]
[1731055309507,0.814,2897.9,2897.3,1.3002]
[1731055311688,4.04251011,2898.0,2897.3,1.3002]
[1731055311892,0.40425101,2897.9,2897.3,1.3002]
[1731055312467,0.40425101,2897.9,2897.3,0.7502]
[1731055314912,7.85026645,2898.2,2897.5,0.7515]
[1731055315299,8.55957347,2898.2,2897.5,0.7515]
[1731055315911,8.55957347,2898.2,2897.6,0.55]
[1731055316116,0.70930702,2898.6,2897.9,0.8215]
[1731055316423,0.70930702,2898.9,2898.1,0.8215]
[1731055316585,0.70930702,2899.0,2898.1,0.8215]
[1731055316784,0.17726232,2898.9,2898.1,0.8215]
[1731055316982,0.70930702,2899.0,2898.1,0.8215]
[1731055317182,0.70930702,2898.9,2898.1,0.8215]
[1731055317419,1.46460702,2898.9,2898.1,0.8215]
[1731055317801,0.70930702,2898.7,2898.1,0.8215]
[1731055318005,0.70930702,2898.8,2898.1,0.8215]
[1731055318535,0.70930702,2898.7,2898.1,0.8215]
[1731055318715,0.17726232,2898.6,2898.1,0.8215]
[1731055319031,0.70930702,2898.8,2898.1,0.8215]
[1731055319623,0.70930702,2898.7,2898.1,0.8215]
[1731055319997,4.04251011,2898.7,2898.1,0.8215]
[1731055320331,0.70930702,2898.6,2898.1,0.8215]
[1731055320537,0.51058263,2898.5,2898.1,0.8215]
[1731055320892,1.21988965,2898.5,2898.1,0.8215]
[1731055321406,0.70930702,2898.4,2898.1,0.8215]
[1731055322619,1.21988965,2898.5,2898.1,0.8215]
[1731055322996,0.70930702,2898.4,2898.1,0.8215]
[1731055323194,0.9376276,2898.4,2898.1,0.8215]
[1731055323422,4.27083069,2898.4,2896.9,0.55]
[1731055323605,0.70930702,2898.2,2897.0,0.7609]
[1731055323934,0.70930702,2898.2,2897.3,0.7816]
[1731055324225,1.24272171,2898.2,2897.3,0.7816]
[1731055324596,0.70930702,2898.1,2897.3,0.7816]
[1731055324786,1.24272171,2898.2,2897.3,0.7816]
[1731055325599,0.70930702,2898.1,2897.3,0.7816]
[1731055326111,4.04251011,2898.1,2897.3,0.7816]
[1731055326313,1.27323112,2898.0,2897.3,0.7816]
[1731055326844,0.70930702,2897.9,2897.3,0.7816]
[1731055327132,3.33320309,2897.8,2897.3,0.7816]
[1731055327291,4.04251011,2897.8,2897.3,0.7816]
[1731055328131,3.33320309,2897.8,2897.3,0.7816]
[1731055328331,0.40425101,2897.7,2897.3,0.7816]
[1731055329202,0.70930702,2897.9,2897.3,0.7816]
[1731055329409,4.27323112,2898.0,2897.3,0.7816]
[1731055329610,3.5639241,2898.0,2897.3,0.7816]
[1731055329800,4.27323112,2898.0,2897.3,0.7816]
[1731055330197,0.70930702,2897.9,2897.3,0.7816]
[1731055330509,1.57628206,2897.9,2897.3,0.7816]
[1731055330920,0.70930702,2897.8,2897.3,0.7816]
[1731055331300,3.70930702,2897.8,2897.3,0.7816]
[1731055331897,0.70930702,2897.7,2897.3,0.7816]
[1731055332433,7.04251011,2897.8,2897.3,0.7816]
[1731055332737,1.68945715,2897.7,2897.3,0.7816]
[1731055333135,0.70930702,2897.6,2896.5,0.55]
[1731055333343,0.70930702,2897.6,2896.6,0.7934]
[1731055333630,0.98015013,2897.7,2896.6,0.7934]
[1731055333833,0.70930702,2897.7,2896.7,0.55]
[1731055334009,0.70930702,2897.8,2897.0,0.7934]
[1731055334206,4.57628206,2897.9,2897.0,0.7934]
[1731055334598,0.70930702,2897.9,2897.0,0.7934]
[1731055334795,4.06331617,2898.0,2897.0,0.7934]
[1731055334796,3.70930702,2898.0,2897.0,0.7934]
[1731055335242,3.70930702,2898.0,2897.2,0.7717]
[1731055336349,0.70930702,2897.9,2897.2,0.7717]
[1731055336651,0.3709307,2897.8,2897.2,0.7717]
[1731055336845,0.70930702,2897.9,2897.2,0.7717]
[1731055338015,3.70930702,2898.0,2897.2,0.7717]
[1731055338251,0.70930702,2897.9,2897.2,0.7717]
[1731055338955,3.70930702,2898.0,2897.2,0.7717]
[1731055339257,0.70930702,2898.2,2897.4,0.8113]
[1731055339458,3.70930702,2898.1,2897.4,0.8113]
[1731055340021,4.66166514,2898.2,2897.4,0.8113]
[1731055340223,0.3,2898.0,2897.4,0.8113]
[1731055342921,1.00930702,2898.0,2897.4,0.8113]
[1731055343668,0.3,2898.0,2897.4,0.8113]
[1731055344465,1.00930702,2898.0,2897.4,0.8113]
[1731055344838,0.3,2898.0,2897.4,0.8113]
[1731055346323,1.00930702,2898.0,2897.4,0.8113]
[1731055348254,0.70930702,2897.9,2897.4,0.8113]
[1731055348679,1.00930702,2898.0,2897.4,0.8113]
[1731055349667,1.35834483,2898.0,2897.4,0.8113]
[1731055349826,0.70930702,2897.9,2897.4,0.8113]
[1731055350336,0.70930702,2897.8,2897.4,0.8113]
[1731055351464,0.70930702,2897.9,2897.4,0.8113]
[1731055352374,1.00930702,2898.0,2897.4,0.8113]
[1731055352961,0.3,2898.0,2897.4,0.8113]
[1731055353599,0.3,2898.0,2897.6,0.8289]
[1731055354207,0.3,2898.0,2897.7,0.55]
[1731055354496,0.3,2898.0,2897.6,0.8289]
[1731055354497,0.3,2898.0,2897.9,1.3187]
[1731055354897,0.3,2898.0,2897.9,0.7687]
[1731055355258,1.00930702,2898.0,2896.9,0.55]
[1731055355461,1.00930702,2898.0,2896.7,0.01]
[1731055355462,0.70930702,2897.9,2897.2,0.7687]
[1731055355703,0.70930702,2897.9,2897.4,0.7687]
[1731055356061,0.3,2898.0,2897.4,0.7687]
[1731055357158,0.3,2898.0,2897.6,0.777]
[1731055357390,0.3,2898.0,2897.8,0.777]
[1731055357760,0.3,2898.0,2897.9,0.55]
[1731055358089,0.3,2898.0,2897.9,1.327]
[1731055370478,0.3,2898.0,2897.9,1.40599889]
[1731055370683,0.3,2898.0,2897.9,2.18091909]
[1731055371076,0.21939403,2898.0,2897.9,2.18091909]
[1731055371279,0.21939403,2898.0,2897.9,2.1119202]
[1731055371921,0.21939403,2898.0,2897.9,1.327]
[1731055373251,0.21939403,2898.0,2897.9,0.777]
[1731055374724,0.21939403,2898.0,2897.9,1.327]
[1731055377168,0.21939403,2898.0,2897.8,0.55]
[1731055377471,0.21939403,2898.0,2897.7,0.799]
[1731055378637,0.21939403,2898.0,2897.8,0.55]
[1731055380112,0.21939403,2898.0,2897.7,0.799]
[1731055380113,0.21939403,2898.0,2897.9,1.38401384]
[1731055382783,0.21939403,2898.0,2897.9,7.73721693]
[1731055383363,0.21939403,2898.0,2897.9,0.06901384]
[1731055383579,0.21939403,2898.0,2897.6,0.7929]
[1731055384867,0.21939403,2898.0,2897.7,0.55]
[1731055386463,0.21939403,2898.0,2897.9,0.55]
[1731055386687,0.21939403,2898.0,2897.9,1.3442]
[1731055391857,0.21939403,2898.0,2897.9,1.3542]
[1731055392056,0.21939403,2898.0,2897.9,2.12394031]
[1731055394901,0.7543,2899.4,2898.7,0.55]
[1731055395489,0.7543,2899.4,2898.7,0.56]
[1731055395701,0.8219,2899.8,2898.8,0.8123]
[1731055395862,0.8219,2899.8,2898.9,0.56]
[1731055396267,0.8219,2900.1,2899.3,0.55]
[1731055399218,0.8081,2899.8,2898.7,0.7663]
[1731055399360,0.8081,2899.8,2898.4,0.7663]
[1731055399567,0.8322,2899.7,2898.4,0.7663]
[1731055400206,0.8322,2899.7,2898.4,0.7763]
[1731055400820,0.8322,2899.7,2898.5,0.6189848]